Cogmind - Beta 16 @@@ ROGUE MODE // 2025.10.26 @ 19:51:09 Player: MolePlayingNice Result: Destroyed by Y-72 Warden with Railgun Performance ------------- Evolutions (8) 4000 Regions Visited (22) 4400 Robots Destroyed (434) 2170 Value Destroyed (26324) 26324 Prototype IDs (83) 1660 Alien Tech Used (13) 2600 Bonus (16723) 16723 TOTAL SCORE: 57877 Bonus ------- Triggered High Security 500 High Alert Combat Kills 6472 Follower Combat Kills 636 Registered with UFD 300 Met Optimus in HQ 500 Met Zhirov 300 Met Warlord at Base 500 MAIN.C Attacked Warlord 500 Warlord Defense Kills 3178 Used Core Reset Matrix 3000 Scanned by Researcher 500 Pursued by Intercept 500 Friendly Fire -163 Cogmind --------- Core Integrity 0/1450 Matter 209/300 Energy 100/100 System Corruption 0% +Membrane Temperature Cool (9) Movement Core (50) +NEM 1 Location -2/Section 7 Parts ------- > --- POWER (3) -------- (None) > --- PROPULSION (4) --- Advanced Heavy Siege Treads Myomer Leg Myomer Leg > --- UTILITY (11) ----- Experimental Coolant Injector Experimental Optical Array Experimental Signal Interpreter > --- WEAPON (5) ------- (None) > --- INVENTORY (5) ---- SHELL Armor Hardcell Cannon Fusion Bomb Launcher Peak State ------------ > --- POWER ------------ Light Antimatter Reactor Particle Reactor Quantum Reactor > --- PROPULSION ------- Centrium Leg Myomer Exoskeleton > --- UTILITY ---------- Advanced Cryofiber Web Huge Storage Unit Advanced Sensor Array Experimental Signal Interpreter Experimental Terrain Scanner Experimental Core Analyzer Advanced Transmission Jammer SHELL Armor Ghost Barrier > --- WEAPON ----------- Enhanced Quantum Rifle Heavy Quantum Rifle Enhanced Nova Cannon Railgun Hypervelocity Railgun > --- INVENTORY -------- Micro Antimatter Reactor Centrium Leg Centrium Leg Advanced Cryofiber Web Advanced Heat Sink Advanced Heat Sink Advanced Heat Sink Experimental Coolant Injector Experimental Matter Compressor Advanced Target Analyzer Improved Armor Integrity Analyzer Advanced Force Field Advanced Recalibrator Subatomic Replicator Vortex Shotgun Vortex Shotgun Compact HERF Cannon Long-range Phase Cannon Null Cannon Core Cannon Enhanced Hardcell Cannon Gamma Bomb Array Fusion Bomb Launcher CPS Tube [Rating: 225] Favorites ----------- Power Light Antimatter Reactor Engine Improved Deuterium Engine Power Core Light Neutrino Core Reactor Light Antimatter Reactor Propulsion Tripod Weapons Platform Treads Light Treads Leg Tripod Weapons Platform Wheel Armored Wheel Utility Experimental Cooling System Device Experimental Cooling System Storage High-capacity Storage Unit Processor Experimental Core Analyzer Hackware Ghost Barrier Protection Medium Reactive Plating Artifact Phase Armor Weapon Wave Gun Energy Gun Wave Gun Energy Cannon Enhanced Nova Cannon Ballistic Gun Railgun Ballistic Cannon Hardcell Cannon Launcher Fusion Bomb Launcher Special Weapon Improved Plasma Cutter Special Melee Weapon Datajack Build | -11 -10 -9 -8 -7 -7 -7 -7 -5 -5 -5 -5 -4 -4 -4 -4 -4 -3 -3 -3 -2 -2 -2 ------- Run | Yrd Mat Mat Mat Fac Sto Rec Scr Fac Upp Upp War Pro Fac Upp Upp Zhi Pro Res Qua Res Tes Sec Slots Evolved 16 | . . 2 2 2 . . . 4 . . . . 2 . . . . 2 . 2 . . Power 2 | . . . 1 . . . . . . . . . . . . . . . . 1 . . Propulsion 2 | . . . . 1 . . . . . . . . . . . . . . . 1 . . Utility 9 | . . 1 1 1 . . . 4 . . . . 1 . . . . 1 . . . . Weapon 3 | . . 1 . . . . . . . . . . 1 . . . . 1 . . . . Parts Attached 338 | . 17 38 19 18 2 . 3 13 3 2 9 4 5 . . 3 3 31 25 35 31 77 Power 52 | . 1 7 . 2 2 . . . . . 1 . . . . 1 1 4 4 7 6 16 Engine 12 | . 1 6 . 2 2 . . . . . . . . . . . . . . . . 1 Core 4 | . . 1 . . . . . . . . . . . . . . . . 1 . . 2 Reactor 36 | . . . . . . . . . . . 1 . . . . 1 1 4 3 7 6 13 Propulsion 67 | . 5 15 1 1 . . . . . . . . . . . . . 6 3 12 5 19 Treads 13 | . . 8 1 . . . . . . . . . . . . . . . . . . 4 Leg 52 | . 5 5 . 1 . . . . . . . . . . . . . 6 3 12 5 15 Wheel 2 | . . 2 . . . . . . . . . . . . . . . . . . . . Hover . | . . . . . . . . . . . . . . . . . . . . . . . Flight . | . . . . . . . . . . . . . . . . . . . . . . . Utility 115 | . 5 7 10 8 . . . 7 1 2 6 3 2 . . 2 2 13 10 5 12 20 Device 62 | . 3 3 8 1 . . . 1 1 . 3 1 2 . . 1 1 10 5 4 7 11 Storage 8 | . 1 1 . 1 . . . . . . 2 . . . . . . . 1 . 1 1 Processor 12 | . . . . 1 . . . 3 . . . 1 . . . . . 1 . . 3 3 Hackware 7 | . . . . . . . . 1 . . . . . . . . . 1 2 1 . 2 Protection 25 | . 1 3 2 5 . . . 2 . 2 1 1 . . . 1 1 1 1 . 1 3 Artifact 1 | . . . . . . . . . . . . . . . . . . . 1 . . . Weapon 104 | . 6 9 8 7 . . 3 6 2 . 2 1 3 . . . . 8 8 11 8 22 Energy Gun 61 | . 3 5 4 7 . . 2 5 1 . 1 . 2 . . . . 7 4 7 5 8 Energy Cannon 17 | . . 2 3 . . . . 1 . . . . 1 . . . . 1 . 2 2 5 Ballistic Gun 14 | . 1 2 . . . . . . . . . . . . . . . . 2 2 1 6 Ballistic Cannon 2 | . . . . . . . . . . . . . . . . . . . 1 . . 1 Launcher 7 | . 2 . . . . . . . 1 . . 1 . . . . . . 1 . . 2 Special Weapon 2 | . . . . . . . 1 . . . 1 . . . . . . . . . . . Impact Weapon . | . . . . . . . . . . . . . . . . . . . . . . . Slashing Weapon . | . . . . . . . . . . . . . . . . . . . . . . . Piercing Weapon . | . . . . . . . . . . . . . . . . . . . . . . . Special Melee Weapon 1 | . . . 1 . . . . . . . . . . . . . . . . . . . Unidentified Prototypes 45 | . . 4 1 . 2 . . . . . 6 1 . . . 3 . 1 1 . 6 20 Corrupted Parts 8 | . . . 7 1 . . . . . . . . . . . . . . . . . . System Corruption 46 | . . . 43 3 . . . . . . . . . . . . . . . . . . Parts Lost 91 | . . 3 3 1 . . . . 1 . 4 . . . . . . 9 8 6 2 54 Power 21 | . . . . . . . . . . . . . . . . . . . 2 1 1 17 Propulsion 14 | . . 1 . . . . . . . . . . . . . . . 2 . . . 11 Utility 26 | . . . 2 . . . . . 1 . 2 . . . . . . 2 4 2 1 12 Weapon 30 | . . 2 1 1 . . . . . . 2 . . . . . . 5 2 3 . 14 Highest Loss Streak 25 | . . 2 1 1 . . . . 1 . 4 . . . . . . 3 5 3 1 25 To Critical Strikes 2 | . . . 1 . . . . . . . . . . . . . . . . . . 1 Average Backups 17 | . 7 13 13 13 15 14 14 14 14 14 16 19 19 20 20 20 19 19 18 17 22 22 Power . | . . 1 1 1 1 1 1 1 1 1 . . . 1 1 1 1 . 1 . 1 . Propulsion 1 | . 2 4 2 . . . . . . . . 1 1 2 2 1 1 1 1 . 1 1 Utility 7 | . 1 4 3 5 7 7 7 5 7 7 9 11 10 10 10 9 9 9 6 5 8 7 Weapon 6 | . 4 3 4 5 7 6 5 5 4 4 4 5 5 5 5 5 5 5 6 8 9 8 Tool/Special . | . . . . . . . . . . . . . . . . . . . . . . . Unused Backups 84 | . 11 14 2 2 2 2 3 9 . 1 1 . . . . 2 1 5 1 6 10 12 Power 5 | . 1 1 1 . 1 . . . . . . . . . . . . . . . 1 . Propulsion 12 | . 3 4 . 1 . . . . . . . . . . . 1 . 1 . . 1 1 Utility 39 | . 1 8 1 1 . . 2 4 . 1 1 . . . . 1 1 4 . 1 6 7 Weapon 25 | . 6 1 . . 1 2 1 4 . . . . . . . . . . . 5 2 3 Tool/Special 3 | . . . . . . . . 1 . . . . . . . . . . 1 . . 1 Average Slot Usage (%) 90 | . 96 99 99 85 86 86 86 88 89 89 84 83 84 85 85 85 87 94 98 98 90 85 Engine 4 | . 13 10 17 13 13 13 13 10 10 10 2 . . . . . . . . . . . Reactor 5 | . . . . . . . . . . . 3 5 5 5 5 5 7 8 7 11 12 8 Treads 1 | . . 10 13 . . . . . . . . . . . . . . . . . . . Leg 10 | . 28 9 . 5 6 6 6 5 5 5 5 5 5 5 5 5 5 9 14 16 14 16 Device 21 | . 11 13 19 20 20 20 20 25 29 29 25 26 29 30 30 30 28 30 26 22 19 15 Storage 5 | . 14 11 9 6 6 6 6 5 5 5 5 5 5 5 5 5 5 4 4 4 4 3 Processor 4 | . . . . . . . . 3 5 5 5 5 5 5 5 5 5 8 4 4 7 11 Hackware 2 | . . . . . . . . . . . . . . . . . . 2 11 12 4 1 Protection 5 | . . 8 7 5 6 6 6 12 6 6 10 11 10 10 10 10 11 3 1 1 3 3 Energy Gun 19 | . 16 15 17 32 33 33 33 25 25 26 25 22 24 25 25 25 25 21 15 16 10 9 Energy Cannon 2 | . . 6 7 . . . . . . . . . . . . . . 2 2 1 3 5 Ballistic Gun 3 | . 11 9 1 . . . . . . . . . . . . . . . 5 2 6 3 Peak Build Rating 225 | . 11 21 57 97 96 96 97 127 128 124 142 150 164 162 162 156 160 174 167 200 225 218 Average Rating 131 | . 9 17 42 87 91 95 96 120 122 120 131 142 156 156 156 154 155 155 148 174 205 199 On Entrance 112 | 6 6 11 21 50 88 96 96 97 124 121 121 135 143 162 156 156 154 149 141 148 199 206 Avg Prop Armor Cover (%) 34 | . . . . . . . . . . . . . . . . . . . . . . 34 Naked Turns . | . . . . . . . . . . . . . . . . . . . . . . . Heaviest Build 217 | 13 31 43 62 87 88 88 88 100 114 119 132 144 150 144 144 144 152 163 164 176 217 214 Greatest Support 160 | 20 20 40 40 90 90 90 90 90 90 90 90 90 90 90 90 90 90 90 68 116 120 160 Greatest Overweight (x) 5 | . 1 3 3 . . . . 1 1 1 1 1 1 1 1 1 1 2 2 1 3 5 Average Overweight (x) . | . . 1 1 . . . . . . . . 1 1 1 1 1 1 1 1 1 1 . Largest Inventory Capacity 25 | . 15 15 15 15 15 15 15 15 15 15 20 20 20 20 20 20 20 20 20 20 25 25 Average Capacity 18 | . 8 15 15 15 15 15 15 15 15 15 17 20 20 20 20 20 20 20 20 20 24 24 Most Carried 25 | . 8 15 15 15 15 15 15 15 15 15 20 20 20 20 20 20 20 20 20 20 25 25 Average Carried 18 | . 7 13 14 13 14 14 14 14 14 14 16 19 19 20 20 19 19 19 19 19 23 23 Final Capacity 25 | 8 15 15 15 15 15 15 15 15 15 15 20 20 20 20 20 20 20 20 20 20 25 5 Final Carried 24 | 6 8 15 15 15 15 14 15 15 14 15 20 20 20 20 20 20 19 20 20 20 24 5 Class Distribution -------------------- 35% | Scavenger-Gunner 28% | Scavenger-Tank 13% | Scavenger-Skirmisher 6% | Commander-Gunner 5% | Tank 3% | Mutant 3% | Scientist-Skirmisher Dominant Class ---------------- Mutant | -10/Materials Tank | -9/Materials Scavenger-Tank | -8/Materials Scavenger-Gunner | -7/Factory Commander-Gunner | -7/Storage Commander-Gunner | -7/Recycling Commander-Gunner | -7/Scraptown Scavenger-Tank | -5/Factory Scavenger-Gunner | -5/Upper Caves Scavenger-Gunner | -5/Upper Caves Scavenger-Tank | -5/Warlord Scavenger-Tank | -4/Proximity Caves Scavenger-Tank | -4/Factory Scavenger-Tank | -4/Upper Caves Scavenger-Tank | -4/Upper Caves Scavenger-Tank | -4/Zhirov Scavenger-Tank | -3/Proximity Caves Scavenger-Gunner | -3/Research Scavenger-Gunner | -3/Quarantine Scavenger-Gunner | -2/Research Scavenger-Skirmisher | -2/Testing Scavenger-Skirmisher | -2/Section 7 Resources | -11 -10 -9 -8 -7 -7 -7 -7 -5 -5 -5 -5 -4 -4 -4 -4 -4 -3 -3 -3 -2 -2 -2 ----------- Run | Yrd Mat Mat Mat Fac Sto Rec Scr Fac Upp Upp War Pro Fac Upp Upp Zhi Pro Res Qua Res Tes Sec Matter Collected 11801 | 200 369 749 366 457 54 21 254 291 125 78 703 174 130 . 130 . 220 857 1006 776 1464 3377 Remotely . | . . . . . . . . . . . . . . . . . . . . . . . Salvage Created 24858 | . 593 2106 913 994 54 162 . 657 261 100 1186 605 437 . 432 . 1577 3290 1284 1752 2240 6215 Parts 920 | . 29 115 33 48 2 2 . 19 4 4 25 17 11 . 10 . 38 121 77 60 90 215 Haulers Intercepted 10 | . 1 5 . . . . . 2 . . . . . . . . 1 . . . . 1 Recyclers Shooed 6 | . . 2 2 1 . 1 . . . . . . . . . . . . . . . . Parts Field Recycled . | . . . . . . . . . . . . . . . . . . . . . . . Retrieved Matter . | . . . . . . . . . . . . . . . . . . . . . . . Parts Self-Destructed 90 | . . . . . . . . . 4 4 . 17 . . 10 . 55 . . . . . Prevented . | . . . . . . . . . . . . . . . . . . . . . . . Parts Restored . | . . . . . . . . . . . . . . . . . . . . . . . Kills | -11 -10 -9 -8 -7 -7 -7 -7 -5 -5 -5 -5 -4 -4 -4 -4 -4 -3 -3 -3 -2 -2 -2 ------- Run | Yrd Mat Mat Mat Fac Sto Rec Scr Fac Upp Upp War Pro Fac Upp Upp Zhi Pro Res Qua Res Tes Sec Combat Hostiles Destroyed 359 | . 12 35 10 19 1 3 . 8 7 1 22 10 5 . 7 . 21 42 22 22 21 91 Guns 232 | . 9 24 5 16 1 2 . 8 2 1 18 9 3 . 7 . 16 35 13 16 15 32 Cannons 50 | . . 7 3 . . . . . . . . . . . . . . 4 3 4 4 25 AOE 43 | . 3 4 . . . . . . 5 . 3 . . . . . . . 5 . . 23 Classes Destroyed 24 | . 5 3 2 2 . . . . . 1 5 1 . . . . . 1 1 . 1 2 Worker 10 | . 1 1 . 2 . . . . . . . . . . . . . 1 . . 1 4 Builder 6 | . . . . . . . . . . . . . . . . . . 1 . 1 . 4 Hauler 10 | . 1 5 . . . . . 2 . . . . . . . . 1 . . . . 1 Recycler 18 | . 2 8 3 1 . . . . . . . . . . . . . 3 . . 1 . Operator 4 | . . . 1 1 . . . 1 . . . . . . . . . . . . 1 . Drone 4 | . . . . . . . . . . . . 2 . . . . 2 . . . . . Watcher 16 | . . 1 . 4 . . . 1 . . . . 2 . . . . . 2 1 2 3 Swarmer 44 | . 3 10 . 11 . . . . . . 2 . . . 2 . 2 5 7 2 . . Saboteur 1 | . . . . . . . . . . . . . . . . . . . . . . 1 Grunt 127 | . 9 14 8 2 . . . 5 1 . 5 4 2 . 1 . 11 16 5 5 8 31 Brawler 14 | . . . . 1 . . . . 2 . 2 . . . 1 . 4 1 . . . 3 Duelist 12 | . . 1 . . . . . . 3 . . . . . 2 . 1 1 . . . 4 Protector 2 | . . . . . . . . . . . 2 . . . . . . . . . . . Researcher 11 | . . . . . . . . . . . . . . . . . . . 1 . 1 9 Sentry 35 | . . 10 . 4 1 3 . 1 1 . . . 1 . 1 . 1 4 . 4 . 4 Specialist 1 | . . . . . . . . . . . 1 . . . . . . . . . . . Hunter 21 | . . . 1 . . . . . . . . 2 . . . . . 2 . 4 . 12 Programmer 67 | . . . . 1 . . . 2 . . 3 2 2 . . . . 12 10 6 11 18 Q-Series 1 | . . . . . . . . . . . . . . . . . . . . . . 1 Behemoth 3 | . . . . . . . . . . 1 . . . . . . . 1 . 1 . . S7 Guard 3 | . . . . . . . . . . . . . . . . . . . . . . 3 Tracker 6 | . . . . . . . . . . . . . . . . . . . . . . 6 Combat Programmer 4 | . . . . . . . . . . . . . . . . . . . . . . 4 Striker 4 | . . . . . . . . . . . 3 . . . . . . . . . 1 . Executioner 7 | . . . . . . . . . . . 3 . . . . . . . . . . 4 Fortress 1 | . . . . . . . . . . . . . . . . . . . . . 1 . Mutant 1 | . . . . . . . . . . . 1 . . . . . . . . . . . Best Kill Streak 16 | . 4 5 4 10 1 2 . 5 8 1 12 2 3 . 7 . 8 6 4 5 8 16 Combat Bots Only 15 | . 3 5 3 7 1 2 . 4 7 1 12 2 2 . 7 . 8 4 4 5 8 15 Max Kills in Single Turn 4 | . 2 2 1 3 1 1 . 1 2 1 3 1 1 . 2 . 2 2 3 1 1 4 Gunslinging 2 | . . . . 2 . . . . 1 . 1 . . . 1 . 1 1 . . . 1 Exploded 4 | . 2 2 . . . . . . 2 . 3 . . . . . . . 3 . . 4 Melee . | . . . . . . . . . . . . . . . . . . . . . . . Uniques/NPCs Destroyed 1 | . . . 1 . . . . . . . . . . . . . . . . . . . 7R-MNS (-8/Materials) Combat | -11 -10 -9 -8 -7 -7 -7 -7 -5 -5 -5 -5 -4 -4 -4 -4 -4 -3 -3 -3 -2 -2 -2 -------- Run | Yrd Mat Mat Mat Fac Sto Rec Scr Fac Upp Upp War Pro Fac Upp Upp Zhi Pro Res Qua Res Tes Sec Hostile Shots Fired 2411 | . 55 134 75 105 12 . . 15 24 12 98 33 19 . 11 . 48 266 102 132 87 1183 Missed 748 | . 12 42 14 48 6 . . 7 9 3 46 19 6 . 4 . 28 81 28 36 27 332 Hits 1663 | . 43 92 61 57 6 . . 8 15 9 52 14 13 . 7 . 20 185 74 96 60 851 Melee 20 | . . . . . . . . . 4 . . . . . . . . 1 . . . 15 Projectile 1643 | . 43 92 61 57 6 . . 8 11 9 52 14 13 . 7 . 20 184 74 96 60 836 AOE 56 | . . . . . . . . . . . . . . . . . . . . . . 56 Critical Strikes 102 | . 1 . 5 . . . . 1 1 . 7 1 1 . . . 1 12 5 3 5 59 Part Disruptions 8 | . . . . 1 . . . . . . 2 . . . . . . . . . 1 4 Damage Taken 35677 | . 502 1229 975 539 21 . . 132 311 160 943 239 164 . 61 . 169 3328 1722 2795 1630 20757 Core 3315 | . 160 183 182 97 3 . . . 9 . 104 17 . . . . . 350 249 525 51 1385 Absorbed by Shields 1799 | . . . . . . . . . 27 . . . 75 . 64 . 180 701 159 . 87 506 Redirected to Core 497 | . . . . . . . . . . . . . . . . . . . 159 338 . . Redirected to Shielding 128 | . . . . . . . . 10 91 . . . . . . . 27 . . . . . Ignored by Resistances 743 | . . . 170 34 12 . . 27 111 42 158 28 21 . 26 . 52 62 . . . . Regen/Repaired (Parts) 9393 | . . . . . . . . . . . 23 . . . . . . . 231 . 682 8457 Core Remaining (%) 71 | 100 36 54 66 . . . 85 . . . . 87 . . . . 100 . 47 . . . Volleys Fired 980 | . 49 110 53 33 7 4 1 20 8 3 31 24 13 . 10 . 37 138 51 63 87 238 Largest 6 | . 2 3 3 5 5 5 1 5 5 5 5 4 5 . 5 . 5 6 5 5 5 5 Hottest 506 | . 112 177 250 374 409 409 5 412 412 412 412 324 409 . 409 . 409 506 393 452 441 484 Shots Fired 3185 | . 92 305 128 148 11 17 1 88 19 15 133 99 61 . 50 . 186 427 149 242 236 778 Gun 2577 | . 86 250 68 148 11 17 . 85 14 15 131 99 60 . 50 . 186 339 118 204 157 539 Cannon 569 | . . 53 60 . . . . 3 . . . . 1 . . . . 88 29 38 79 218 Launcher 38 | . 6 2 . . . . . . 5 . 2 . . . . . . . 2 . . 21 Special 1 | . . . . . . . 1 . . . . . . . . . . . . . . . Kinetic 383 | . 39 80 4 . . . . . . . . . . . . . . . 37 27 64 132 Thermal 2676 | . 44 223 85 148 11 17 . 88 14 15 131 99 61 . 50 . 186 422 110 214 172 586 Explosive 34 | . 6 2 . . . . . . 5 . 2 . . . . . . . 2 . . 17 Electromagnetic 71 | . 3 . 39 . . . . . . . . . . . . . . . . . . 29 Entropic 20 | . . . . . . . . . . . . . . . . . . 5 . 1 . 14 Robot Hit Streak 67 | . 7 16 30 29 8 25 2 59 12 26 41 17 40 . 15 . 67 38 41 56 8 30 Robot Miss Streak 10 | . 5 6 4 2 1 1 . 1 2 . 2 3 1 . 2 . 1 2 2 4 5 10 Penetration Max 1 | . . . . . . . . . . . . . . . . . . . 1 1 . 1 Secondary Targets 43 | . . 3 . 5 . . . 1 1 . 9 . 2 . 1 . 5 7 2 2 1 4 Max Gunslinging Chain 2 | . . 1 . 2 . . . 1 1 . 1 . 1 . 1 . 1 1 1 1 1 1 Shots Hit Robots 2011 | . 53 177 92 97 5 15 1 59 16 14 117 61 47 . 39 . 142 257 100 177 103 439 Core Hits 992 | . 27 72 30 43 3 8 . 35 19 4 61 22 16 . 15 . 58 107 50 81 54 287 Critical Kills 20 | . . 1 . . . . . . . . . . . . . . . . 5 1 8 5 Critical Parts Destroyed 9 | . . . . . . . . . . . . . . . . . . 1 1 2 3 2 Critical Strikes 85 | . 1 12 4 4 . . . . 1 . 6 . 5 . 1 . 9 4 7 6 13 12 Burn 53 | . 1 11 1 4 . . . . 1 . 6 . 5 . 1 . 9 3 1 3 2 5 Meltdown 8 | . . 1 . . . . . . . . . . . . . . . . 1 . 2 4 Destroy 20 | . . . . . . . . . . . . . . . . . . 1 5 3 9 2 Corrupt 3 | . . . 3 . . . . . . . . . . . . . . . . . . . Detonate 1 | . . . . . . . . . . . . . . . . . . . . . . 1 Melee Attacks 1 | . . . 1 . . . . . . . . . . . . . . . . . . . Impact . | . . . . . . . . . . . . . . . . . . . . . . . Slashing . | . . . . . . . . . . . . . . . . . . . . . . . Piercing . | . . . . . . . . . . . . . . . . . . . . . . . Sneak Attacks 1 | . . . 1 . . . . . . . . . . . . . . . . . . . Combat Hostiles . | . . . . . . . . . . . . . . . . . . . . . . . Follow-up Attacks . | . . . . . . . . . . . . . . . . . . . . . . . Damage Inflicted 67749 | . 873 3381 1596 2403 123 552 . 1680 1256 371 3836 1505 1189 . 881 . 3212 8098 3249 4865 3740 24939 Guns 44780 | . 722 2242 945 2256 123 436 . 1656 316 371 2896 1505 1189 . 881 . 3212 7056 2225 4036 2521 10192 Cannons 11227 | . . 737 575 . . . . . . . . . . . . . . 1002 410 751 940 6812 Explosions 11257 | . 133 348 75 . . . . . 940 . 940 . . . . . . . 614 . 279 7928 Melee . | . . . . . . . . . . . . . . . . . . . . . . . Ramming 485 | . 18 54 1 147 . 116 . 24 . . . . . . . . . 40 . 78 . 7 Kinetic 4111 | . 315 554 49 . . . . . . . . . . . . . . . 472 422 553 1746 Thermal 50139 | . 407 2446 1195 2256 123 436 . 1656 316 371 2896 1505 1189 . 881 . 3212 7684 2163 4336 2908 14159 Explosive 10565 | . 133 327 . . . . . . 940 . 940 . . . . . . . 614 . 279 7332 Electromagnetic 1355 | . . . 351 . . . . . . . . . . . . . . . . . . 1004 Impact . | . . . . . . . . . . . . . . . . . . . . . . . Slashing . | . . . . . . . . . . . . . . . . . . . . . . . Piercing . | . . . . . . . . . . . . . . . . . . . . . . . Entropic 1094 | . . . . . . . . . . . . . . . . . . 374 . 29 . 691 Highest Corruption 43 | . 2 . 43 3 1 1 . 2 2 2 6 6 3 3 3 3 3 12 21 5 12 18 Average Corruption 9 | . 1 . 36 1 1 1 . 2 2 2 4 6 2 3 3 3 3 3 18 1 8 16 Corruption Purged 3 | . . . . 3 . . . . . . . . . . . . . . . . . . Corruption Blocked . | . . . . . . . . . . . . . . . . . . . . . . . Effects 577 | . 6 . 33 7 3 11 . 11 5 6 2 21 6 12 18 2 15 30 95 11 72 211 Message Errors 123 | . 1 . 11 1 1 2 . 4 3 . 1 4 1 1 5 . 3 5 19 4 15 42 Matter Fused 127 | . 1 . 6 2 2 3 . . . 1 . 4 . 5 7 1 2 5 28 4 21 35 Heat Flow Errors 61 | . 1 . 2 2 . 2 . . . . . 3 . 2 3 . 2 5 11 . 9 19 Energy Discharges 58 | . . . 1 1 . 3 . 4 1 1 . 3 2 1 . . 2 5 6 1 8 19 Parts Rejected 8 | . . . . . . . . . . . . . . . . . . . 2 . 1 5 Parts Fused 5 | . . . . . . . . . . 1 . . . . . . . . 2 1 . 1 Data Loss (minor) 57 | . 1 . 3 1 . . . 2 . 2 . . 2 2 2 1 2 1 8 . 5 25 Data Loss (major) 34 | . 2 . 4 . . 1 . 1 . 1 . 1 . . . . 1 1 3 . 2 17 Misfires 27 | . . . 2 . . . . . . . . 3 . . . . 2 2 5 . 4 9 Alerts 16 | . . . . . . . . . . . . 3 1 1 1 . . 2 1 . 4 3 Misdirections 8 | . . . . . . . . . . . . . . . . . . . 1 . . 7 Weapon Failures 53 | . . . 4 . . . . . 1 . 1 . . . . . 1 4 9 1 3 29 Overload Shots . | . . . . . . . . . . . . . . . . . . . . . . . Overflow Damage 1216 | . . 45 . 32 . . . . 29 . . . . . . . . 94 16 62 141 797 Projectiles 810 | . . 10 . . . . . . . . . . . . . . . 94 14 27 136 529 Explosions 339 | . . 35 . . . . . . 29 . . . . . . . . . 2 . 5 268 Melee 67 | . . . . 32 . . . . . . . . . . . . . . . 35 . . Knockbacks 4 | . . 1 . 1 . 1 . . . . . . . . . . . 1 . . . . Impact 4 | . . 1 . 1 . 1 . . . . . . . . . . . 1 . . . . Kinetic . | . . . . . . . . . . . . . . . . . . . . . . . Secondary . | . . . . . . . . . . . . . . . . . . . . . . . Self-Inflicted Damage 900 | . . 197 5 . . . . . 32 . . . . . . . . . . . 235 431 Shots 21 | . . 2 1 . . . . . 1 . . . . . . . . . . . 3 14 Rammed 6 | . . 5 1 . . . . . . . . . . . . . . . . . . . Targets Rammed 28 | . 2 7 1 5 . 5 . 2 . . . . . . . . . 3 . 2 . 1 Kicked 22 | . 2 2 . 5 . 5 . 2 . . . . . . . . . 3 . 2 . 1 Crushed . | . . . . . . . . . . . . . . . . . . . . . . . Highest Temperature 463 | . 126 175 336 426 28 113 . 345 333 384 366 314 306 105 136 . 392 427 90 407 396 463 Average Temperature 93 | . 44 45 101 95 17 28 . 97 149 200 122 96 149 54 77 . 89 116 42 122 106 108 Received Heat Transfer 6172 | . 264 354 612 60 . . . 18 58 24 175 57 22 . 8 . 17 448 114 739 90 3112 Effects 6 | . . . . 2 . . . . . 1 . . . . . . . . . . . 3 Shutdowns 2 | . . . . . . . . . . . . . . . . . . . . . . 2 Energy Bleed 1 | . . . . . . . . . . 1 . . . . . . . . . . . . Interference 3 | . . . . 2 . . . . . . . . . . . . . . . . . 1 Siege Activations . | . . . . . . . . . . . . . . . . . . . . . . . Martial Activations . | . . . . . . . . . . . . . . . . . . . . . . . Shielding Activations . | . . . . . . . . . . . . . . . . . . . . . . . Robots Disrupted 1 | . . . . . . . . . . . . . . . . . . . . . . 1 Combat Hostiles 1 | . . . . . . . . . . . . . . . . . . . . . . 1 Robots Corrupted 6 | . . . 1 . . . . . . . . . . . . . . . . . . 5 Combat Hostiles 6 | . . . 1 . . . . . . . . . . . . . . . . . . 5 Parts Fried 14 | . . . 4 . . . . . . . . . . . . . . . . . . 10 Impact Corruptions 4 | . . . . 3 . . . . . . . . . . . . . . . 1 . . Robots Melted 30 | . . 1 1 3 . 1 . . . . 1 1 3 . . . 5 3 1 2 2 6 Combat Hostiles 28 | . . . 1 3 . 1 . . . . 1 1 2 . . . 5 3 1 2 2 6 Parts Melted 240 | . 1 16 6 10 1 2 . 11 . 2 13 6 12 . 5 . 28 39 18 24 4 42 Heat Transferred 72111 | . 1110 6340 2171 4211 249 872 . 2805 555 518 4551 2257 2237 . 1634 . 6479 10251 3231 6307 2996 13337 Parts Sabotaged 6 | . . . . . . . . . . . . . . . . . . 4 . . . 2 Parts Stolen . | . . . . . . . . . . . . . . . . . . . . . . . Parts Stripped . | . . . . . . . . . . . . . . . . . . . . . . . Power Chain Reactions 2 | . . . 2 . . . . . . . . . . . . . . . . . . . Alert | -11 -10 -9 -8 -7 -7 -7 -7 -5 -5 -5 -5 -4 -4 -4 -4 -4 -3 -3 -3 -2 -2 -2 ------- Run | Yrd Mat Mat Mat Fac Sto Rec Scr Fac Upp Upp War Pro Fac Upp Upp Zhi Pro Res Qua Res Tes Sec Maximum Alert Level 5 | . . 1 1 1 . 1 . . . . . . 1 . . . . 3 2 2 2 5 Low Security (%) 37 | . 100 58 98 47 100 92 . 100 . . . . 37 . . . . 1 44 27 . . Level 1 29 | . . 41 1 52 . 7 . . . . . . 62 . . . . 44 42 37 35 13 Level 2 19 | . . . . . . . . . . . . . . . . . . 43 12 34 64 23 Level 3 3 | . . . . . . . . . . . . . . . . . . 9 . . . 14 Level 4 5 | . . . . . . . . . . . . . . . . . . . . . . 25 Level 5 3 | . . . . . . . . . . . . . . . . . . . . . . 15 High Security 1 | . . . . . . . . . . . . . . . . . . . . . . 7 Max Security . | . . . . . . . . . . . . . . . . . . . . . . . Peak Influence 2686 | . 175 366 200 316 195 218 . 80 . . . . 300 . . . . 875 492 513 696 2686 Initial 492 | . . 51 101 32 141 60 . . . . . . 300 . . . . 290 492 27 285 384 Average 424 | . 77 187 126 150 170 154 . 18 . . . . 217 . . . . 429 217 295 457 1134 Influence Increases 13064 | . 432 1183 358 633 104 328 . 276 155 35 460 230 444 . 140 . 616 1441 770 1041 1041 3377 Destroy 0b10 Robot/C 7520 | . 240 700 180 380 20 60 . 160 140 20 400 160 100 . 140 . 500 840 460 580 440 2000 Destroy 0b10 Robot/NC 355 | . 20 75 20 40 . . . 20 . . 10 10 10 . . . 15 25 10 15 25 60 Destroy Leader 1352 | . 62 182 30 98 10 . . 36 . 10 . 30 24 . . . 30 180 64 144 84 368 Allied During Kill 263 | . . . . . . 42 . . . 5 5 . . . . . 71 . . 140 . . Successful Hack 245 | . . 37 20 21 44 14 . 41 . . . . 8 . . . . . 20 36 . 4 Select Force Hacks 240 | . 30 . . . . 210 . . . . . . . . . . . . . . . . Disable Machine 870 | . 30 60 15 45 30 . . 15 . . . . . . . . . 15 150 . 180 330 Destroy Structure 1259 | . 35 54 18 4 . 2 . 4 . . . . 2 . . . . 156 66 111 282 525 Advance Influence 450 | . . . . . . . . . . . . . 300 . . . . 150 . . . . Partial Spotted 45 | . . . . . . . . . . . . . . . . . . . . 15 . 30 Lose Combat Pursuer 465 | . 15 75 75 45 . . . . 15 . 45 30 . . . . . 75 . . 30 60 Influence Decreases 10583 | . 310 1065 525 396 259 365 118 236 195 35 125 565 278 166 56 84 408 774 1596 581 866 1580 Entered New Map 2126 | . . 71 139 41 169 95 118 . 15 . . 335 . 62 . 84 . 68 383 22 224 300 Time Decay 6497 | . 310 664 356 345 90 270 . 236 170 35 45 230 278 104 56 . 328 616 543 459 622 740 Lost Part 893 | . . 30 30 10 . . . . 10 . 40 . . . . . . 90 63 60 20 540 Lost Ally 160 | . . . . . . . . . . . 40 . . . . . 80 . . 40 . . Purge Threat 907 | . . 300 . . . . . . . . . . . . . . . . 607 . . . Squads Dispatched 85 | . 3 2 1 2 . . . 5 . . . . 1 . 1 . 1 13 4 6 7 39 Investigation 8 | . 1 2 . . . . . 2 . . . . . . . . . 1 . 1 . 1 Extermination 32 | . . . . 2 . . . 2 . . . . 1 . . . . 5 4 4 5 9 Reinforcement 17 | . 2 . 1 . . . . 1 . . . . . . . . . 1 . . 1 11 Assault 21 | . . . . . . . . . . . . . . . 1 . 1 3 . . 1 15 Garrison 4 | . . . . . . . . . . . . . . . . . . 3 . 1 . . Intercept 3 | . . . . . . . . . . . . . . . . . . . . . . 3 Searches Triggered . | . . . . . . . . . . . . . . . . . . . . . . . Construction Impeded 1 | . . . . . . . . . . . . . . . . . . . . . . 1 Haulers Reinforced 2 | . . . . . . . . 1 . . . . . . . . . . . . 1 . Active Scanning Responses . | . . . . . . . . . . . . . . . . . . . . . . . Cargo Convoy Interrupts . | . . . . . . . . . . . . . . . . . . . . . . . Stealth | -11 -10 -9 -8 -7 -7 -7 -7 -5 -5 -5 -5 -4 -4 -4 -4 -4 -3 -3 -3 -2 -2 -2 --------- Run | Yrd Mat Mat Mat Fac Sto Rec Scr Fac Upp Upp War Pro Fac Upp Upp Zhi Pro Res Qua Res Tes Sec Distress Signals 20 | . 1 6 3 2 . . . 1 . . 1 . . . . . . 2 . . 2 2 Communications Jammed 126 | . . . . . . . . . . . . . . . . . . 20 . 8 24 74 Distress Signals 122 | . . . . . . . . . . . . . . . . . . 17 . 8 23 74 Times Spotted 679 | . 19 63 16 32 1 . . 14 9 1 48 11 7 . 7 . 27 54 29 32 29 280 Peak Tracking Total 30 | . 5 7 5 4 1 . . 2 9 1 17 4 3 . 7 . 8 6 4 4 5 30 Tactical Retreats 20 | . 1 3 2 2 . . . . 1 . 3 1 . . . . . 3 . . 2 2 Traps | -11 -10 -9 -8 -7 -7 -7 -7 -5 -5 -5 -5 -4 -4 -4 -4 -4 -3 -3 -3 -2 -2 -2 ------- Run | Yrd Mat Mat Mat Fac Sto Rec Scr Fac Upp Upp War Pro Fac Upp Upp Zhi Pro Res Qua Res Tes Sec Traps Triggered 9 | . 2 2 . . . . . 1 . . . . . . . . . 2 1 . . 1 Indirectly . | . . . . . . . . . . . . . . . . . . . . . . . Trap Hack Attempts . | . . . . . . . . . . . . . . . . . . . . . . . Triggered . | . . . . . . . . . . . . . . . . . . . . . . . Disarmed 3 | . . . . . 3 . . . . . . . . . . . . . . . . . Reprogrammed . | . . . . . . . . . . . . . . . . . . . . . . . Reused . | . . . . . . . . . . . . . . . . . . . . . . . Traps Extracted . | . . . . . . . . . . . . . . . . . . . . . . . Installed . | . . . . . . . . . . . . . . . . . . . . . . . Triggered . | . . . . . . . . . . . . . . . . . . . . . . . Machines | -11 -10 -9 -8 -7 -7 -7 -7 -5 -5 -5 -5 -4 -4 -4 -4 -4 -3 -3 -3 -2 -2 -2 ---------- Run | Yrd Mat Mat Mat Fac Sto Rec Scr Fac Upp Upp War Pro Fac Upp Upp Zhi Pro Res Qua Res Tes Sec Machines Disabled 62 | . 2 4 1 3 2 . . 1 1 . 1 . . . . . . 1 10 . 12 24 Max in Single Turn 3 | . 1 3 1 1 1 . . 1 1 . 1 . . . . . . 1 1 . 2 2 Garrison Access 4 | . . . . . . . . 1 . . . . . . . . . . 1 1 . 1 Machines Repaired . | . . . . . . . . . . . . . . . . . . . . . . . Machines Dismantled 1 | . . . . . . . . . . . 1 . . . . . . . . . . . Machines Sabotaged . | . . . . . . . . . . . . . . . . . . . . . . . Overloaded Fab Kills . | . . . . . . . . . . . . . . . . . . . . . . . Hacking | -11 -10 -9 -8 -7 -7 -7 -7 -5 -5 -5 -5 -4 -4 -4 -4 -4 -3 -3 -3 -2 -2 -2 --------- Run | Yrd Mat Mat Mat Fac Sto Rec Scr Fac Upp Upp War Pro Fac Upp Upp Zhi Pro Res Qua Res Tes Sec Machines Accessed 107 | . 3 11 2 9 4 9 1 11 . 1 5 . 4 1 2 4 . 8 13 4 5 10 Terminals 50 | . 1 10 2 6 4 2 . 3 . 1 . . 1 . . . . 2 9 2 1 6 Fabricators 3 | . . . . 1 . . . 2 . . . . . . . . . . . . . . Repair Stations 10 | . . . . 1 . . . 1 . . . . 1 . . . . 2 2 . 1 2 Recycling Units 14 | . 2 . . . . 7 . 3 . . . . . . . . . 1 . 1 . . Scanalyzers 8 | . . 1 . . . . . 1 . . . . 1 . . . . 1 1 . 2 1 Garrison Access 9 | . . . . 1 . . . 1 . . . . 1 . . . . 2 1 1 1 1 Total Hacks 275 | . 5 28 6 22 14 12 5 19 . 1 9 . 13 1 4 17 . 14 44 12 28 21 Successful 142 | . 2 12 3 5 8 8 5 7 . 1 9 . 6 1 4 17 . 1 18 6 19 10 Failed 130 | . 3 15 3 17 6 4 . 12 . . . . 7 . . . . 13 25 6 8 11 Catastrophic 39 | . . 5 . 6 2 1 . 7 . . . . 2 . . . . 5 5 1 . 5 Database Lockouts 3 | . . 1 . . . . . . . . . . . . . . . . 1 . 1 . Manual 61 | . 1 11 3 8 6 11 . 8 . . . . 4 . . . . 2 3 2 . 2 Terminals 133 | . 2 26 6 16 14 3 . 7 . 1 . . 4 . . . . 3 30 10 3 8 Fabricators 4 | . . . . 2 . . . 2 . . . . . . . . . . . . . . Repair Stations 27 | . . . . 3 . . . 2 . . . . 1 . . . . 4 9 . 2 6 Recycling Units 20 | . 3 . . . . 9 . 5 . . . . . . . . . 2 . 1 . . Scanalyzers 44 | . . 2 . . . . . 2 . . . . 7 . . . . 2 4 . 22 5 Garrison Access 11 | . . . . 1 . . . 1 . . . . 1 . . . . 3 1 1 1 2 Terminal Hacks 86 | . 1 11 3 3 8 1 5 3 . 1 9 . 1 1 4 17 . . 11 4 1 2 Record 22 | . . . . . . . 5 . . 1 8 . . . 3 5 . . . . . . Part Schematic 4 | . . . . . . . . . . . . . . . . 4 . . . . . . Robot Analysis 8 | . . 3 . 1 . . . . . . . . . . . 4 . . . . . . Prototype ID Bank 10 | . . 1 1 . 2 1 . 1 . . . . . . . 4 . . . . . . Open Door 7 | . . . . . 1 . . . . . 1 . . 1 1 . . . . . 1 2 Level Access Points 2 | . . . 1 . . . . . . . . . . . . . . . . 1 . . Branch Access Points 6 | . . 2 . 1 1 . . 1 . . . . 1 . . . . . . . . . Alert Level 5 | . . . . . . . . 1 . . . . . . . . . . 4 . . . Unreport Threat 7 | . . 2 . . . . . . . . . . . . . . . . 5 . . . Locate Traps 1 | . . . . . 1 . . . . . . . . . . . . . . . . . Disarm Traps 1 | . . . . . 1 . . . . . . . . . . . . . . . . . Recall Extermination 1 | . . . . . . . . . . . . . . . . . . . . 1 . . Hauler Manifests 2 | . . 1 . . . . . . . . . . . . . . . . 1 . . . Registered Components 5 | . 1 2 . 1 . . . . . . . . . . . . . . . 1 . . Registered Prototypes 1 | . . . . . . . . . . . . . . . . . . . . 1 . . Zone Layout 4 | . . . 1 . 2 . . . . . . . . . . . . . 1 . . . Fabricator Hacks 2 | . . . . 1 . . . 1 . . . . . . . . . . . . . . Build 2 | . . . . 1 . . . 1 . . . . . . . . . . . . . . Repair Station Hacks 7 | . . . . 1 . . . . . . . . . . . . . . 3 . . 3 Scan Component 5 | . . . . 1 . . . . . . . . . . . . . . 2 . . 2 Repair 2 | . . . . . . . . . . . . . . . . . . . 1 . . 1 Recycling Unit Hacks . | . . . . . . . . . . . . . . . . . . . . . . . Scanalyzer 32 | . . 1 . . . . . 1 . . . . 5 . . . . . 3 . 18 4 Insert Component 5 | . . . . . . . . . . . . . 2 . . . . . . . 2 1 Analyze 3 | . . . . . . . . . . . . . . . . . . . . . 3 . Retrieve Study 24 | . . 1 . . . . . 1 . . . . 3 . . . . . 3 . 13 3 Garrison Access Hacks 4 | . . . . . . . . 1 . . . . . . . . . . 1 1 . 1 Seal Access 4 | . . . . . . . . 1 . . . . . . . . . . 1 1 . 1 Unauthorized Hacks 11 | . 1 . . . . 7 . 1 . . . . . . . . . 1 . 1 . . Terminals . | . . . . . . . . . . . . . . . . . . . . . . . Fabricators . | . . . . . . . . . . . . . . . . . . . . . . . Repair Stations . | . . . . . . . . . . . . . . . . . . . . . . . Recycling Units 11 | . 1 . . . . 7 . 1 . . . . . . . . . 1 . 1 . . Tunnel 8 | . 1 . . . . 7 . . . . . . . . . . . . . . . . Fedlink 2 | . . . . . . . . 1 . . . . . . . . . 1 . . . . Scrapoids 1 | . . . . . . . . . . . . . . . . . . . . 1 . . Scanalyzers . | . . . . . . . . . . . . . . . . . . . . . . . Garrison Access . | . . . . . . . . . . . . . . . . . . . . . . . Data Cores Recovered 3 | . . . 1 1 . . . 1 . . . . . . . . . . . . . . Used . | . . . . . . . . . . . . . . . . . . . . . . . Hacking Detections 73 | . 2 9 2 9 3 3 . 8 . . . . 4 . . . . 7 11 2 5 8 Full Trace Events 3 | . . 1 . . . . . 1 . . . . . . . . . . . . . 1 Feedback Events . | . . . . . . . . . . . . . . . . . . . . . . . Feedback Blocked . | . . . . . . . . . . . . . . . . . . . . . . . Robot Schematics Acquired 6 | . . . . . . . . . . . . . . . . . . . 1 . 1 4 Robots Built . | . . . . . . . . . . . . . . . . . . . . . . . Authchips . | . . . . . . . . . . . . . . . . . . . . . . . Time . | . . . . . . . . . . . . . . . . . . . . . . . Total Robot Build Rating . | . . . . . . . . . . . . . . . . . . . . . . . Part Schematics Acquired 15 | . . . . . . . . . . . . . . . . 4 . . 1 . 5 5 Parts Built 4 | . . . . 2 . . . 2 . . . . . . . . . . . . . . Authchips . | . . . . . . . . . . . . . . . . . . . . . . . Time 212 | . . . . 84 . . . 128 . . . . . . . . . . . . . . Total Part Build Rating 24 | . . . . 8 . . . 16 . . . . . . . . . . . . . . Part Studies Acquired 24 | . . 1 . . . . . 1 . . . . 3 . . . . . 3 . 13 3 Parts Repaired 2 | . . . . . . . . . . . . . . . . . . . 1 . . 1 Time 126 | . . . . . . . . . . . . . . . . . . . 18 . . 108 Parts Recycled . | . . . . . . . . . . . . . . . . . . . . . . . Recycled Matter . | . . . . . . . . . . . . . . . . . . . . . . . Retrieved Matter . | . . . . . . . . . . . . . . . . . . . . . . . Retrieved Components . | . . . . . . . . . . . . . . . . . . . . . . . Parts Scanalyzed 2 | . . . . . . . . . . . . . . . . . . . . . 2 . Part Schematics Acquired 2 | . . . . . . . . . . . . . . . . . . . . . 2 . Parts Damaged . | . . . . . . . . . . . . . . . . . . . . . . . Bothacking | -11 -10 -9 -8 -7 -7 -7 -7 -5 -5 -5 -5 -4 -4 -4 -4 -4 -3 -3 -3 -2 -2 -2 ------------ Run | Yrd Mat Mat Mat Fac Sto Rec Scr Fac Upp Upp War Pro Fac Upp Upp Zhi Pro Res Qua Res Tes Sec Used RIF Installer . | . . . . . . . . . . . . . . . . . . . . . . . Robots Hacked 2 | . . . 1 . . . 1 . . . . . . . . . . . . . . . Non-combat . | . . . . . . . . . . . . . . . . . . . . . . . Combat 2 | . . . 1 . . . 1 . . . . . . . . . . . . . . . Robot Hacks Applied 2 | . . . 1 . . . 1 . . . . . . . . . . . . . . . parse_system 2 | . . . 1 . . . 1 . . . . . . . . . . . . . . . Relay Couplers Released . | . . . . . . . . . . . . . . . . . . . . . . . Fabnet Peak Effective % . | . . . . . . . . . . . . . . . . . . . . . . . Robots Rewired 6 | . . . . . . . . . 2 . . . . . 2 . 2 . . . . . Allies Hacked . | . . . . . . . . . . . . . . . . . . . . . . . Hacks Repelled . | . . . . . . . . . . . . . . . . . . . . . . . Allies | -11 -10 -9 -8 -7 -7 -7 -7 -5 -5 -5 -5 -4 -4 -4 -4 -4 -3 -3 -3 -2 -2 -2 -------- Run | Yrd Mat Mat Mat Fac Sto Rec Scr Fac Upp Upp War Pro Fac Upp Upp Zhi Pro Res Qua Res Tes Sec Total Allies 21 | . . . . . 10 . . . 2 . . . . . 2 . 2 . . 5 . . Largest Group 10 | . . . . . 10 10 10 . 2 2 2 . . . 2 2 4 . . 5 . . Highest-Rated Group 326 | . . . . . 173 173 173 . 59 59 59 . . . 96 96 186 . . 326 . . Highest-Rated Ally 67 | . . . . . 29 29 29 . 30 30 30 . . . 49 49 49 . . 67 . . Total Orders 1 | . . . . . . . 1 . . . . . . . . . . . . . . . STAY 1 | . . . . . . . 1 . . . . . . . . . . . . . . . Ally Attacks 75 | . . . . . . 4 . . . 3 1 . . . . . 25 . . 42 . . Total Damage 2021 | . . . . . . 49 . . . 57 18 . . . . . 817 . . 1080 . . Kills 15 | . . . . . . . . . . . . . . . . . 6 . . 9 . . Allies Corrupted . | . . . . . . . . . . . . . . . . . . . . . . . Allies Melted . | . . . . . . . . . . . . . . . . . . . . . . . Intel | -11 -10 -9 -8 -7 -7 -7 -7 -5 -5 -5 -5 -4 -4 -4 -4 -4 -3 -3 -3 -2 -2 -2 ------- Run | Yrd Mat Mat Mat Fac Sto Rec Scr Fac Upp Upp War Pro Fac Upp Upp Zhi Pro Res Qua Res Tes Sec Active Infowar (turns) 17654 | . . . 65 689 98 . . 1087 299 479 771 571 456 534 902 257 223 2007 1927 1106 2118 4065 Optics 2242 | . . . . . . . . . . . . . . . . . . . . . . 2242 Sensors 3925 | . . . . . . . . . . . . . . . . . . . . . 1750 2175 Terrain 6318 | . . . . . . . . . . . . . . . . . . 1214 1392 720 1385 1607 Seismic 7989 | . . . 65 689 98 . . 1087 299 479 771 571 456 534 902 257 223 1420 138 . . . Jamming 8805 | . . . . . . . . . . . . . . . . . . 1545 1920 937 2118 2285 Robot Analysis Total 8 | . . 3 . 1 . . . . . . . . . . . 4 . . . . . . Derelict Logs Recovered 2 | . . . . . . . . . . 2 . . . . . . . . . . . . Drone Launches . | . . . . . . . . . . . . . . . . . . . . . . . Drone Recoveries . | . . . . . . . . . . . . . . . . . . . . . . . Exploration | -11 -10 -9 -8 -7 -7 -7 -7 -5 -5 -5 -5 -4 -4 -4 -4 -4 -3 -3 -3 -2 -2 -2 ------------- Run | Yrd Mat Mat Mat Fac Sto Rec Scr Fac Upp Upp War Pro Fac Upp Upp Zhi Pro Res Qua Res Tes Sec Turns Passed 26412 | . 873 3058 804 1117 190 582 1037 1253 384 520 978 731 615 579 950 257 849 2059 1995 1359 2118 4104 Spaces Moved 14626 | 1 522 1274 288 979 133 527 1102 898 331 529 644 359 361 386 600 157 458 865 885 551 936 1840 Core 312 | . . . . . . . . . . . . . . . . . . . . . . 312 Treads 723 | . . 542 178 . . . . . . . . . . . . . . . . . . 3 Legs 13240 | 1 522 491 . 979 133 527 1102 898 331 529 644 359 361 386 600 157 458 865 885 551 936 1525 Wheels 351 | . . 241 110 . . . . . . . . . . . . . . . . . . . Hover . | . . . . . . . . . . . . . . . . . . . . . . . Flight . | . . . . . . . . . . . . . . . . . . . . . . . Fastest Speed 50 | 120 120 105 105 90 90 90 90 90 90 90 90 150 150 150 150 150 150 150 183 180 167 50 Average Speed 141 | 120 121 195 195 90 90 90 90 111 94 92 125 150 150 150 150 150 150 165 188 183 173 151 Slowest Speed 400 | 120 190 320 400 90 90 90 90 150 150 150 150 150 150 150 150 150 150 256 260 185 322 300 Overloaded Moves . | . . . . . . . . . . . . . . . . . . . . . . . Propulsion Burnouts . | . . . . . . . . . . . . . . . . . . . . . . . Robots Hopped . | . . . . . . . . . . . . . . . . . . . . . . . Potential Cave-ins 7 | . . . . . . . . . . . . . . . . . . . 2 2 . 3 Cave-ins Triggered 1 | . . . . . . . . . . . . . . . . . . . 1 . . . Teleports 67 | . . . . . . . . . . . . . . . . . . 1 . . . 66 Exploration Rate (%) 55 | 2 90 90 33 31 22 99 83 26 51 71 69 46 12 57 76 60 61 22 88 19 80 87 Regions Visited 22 Branch Regions 14 Pre-discovered Areas 13 | . 1 . . . . 7 . . . 1 . . . . . 3 . 1 . . . . Known Exits Taken 7 | . . . 1 1 1 . . 1 . . . 1 1 . . . . . . . 1 . Unknown Exits Taken 15 | 1 1 1 . . . 1 1 . 1 1 1 . . 1 1 1 1 1 1 1 . . Scrap Searched 22 | . . . . . . . 7 . 1 4 . 3 . . 3 . 4 . . . . . Spaces Dug 112 | . . . . . . . . 1 . . 8 . 1 . . . . 35 5 11 25 26 Terrain Destroyed 594 | . 35 52 20 . . 2 . 3 23 . 15 . 1 . . . . 77 34 22 124 186 Melee . | . . . . . . . . . . . . . . . . . . . . . . . Projectile 292 | . . . 6 . . 2 . 3 . . . . 1 . . . . 77 13 21 61 108 AOE 301 | . 35 52 14 . . . . . 23 . 15 . . . . . . . 21 . 63 78 Terrain Rammed . | . . . . . . . . . . . . . . . . . . . . . . . Walls Destroyed . | . . . . . . . . . . . . . . . . . . . . . . . Machines Disabled . | . . . . . . . . . . . . . . . . . . . . . . . Actions | -11 -10 -9 -8 -7 -7 -7 -7 -5 -5 -5 -5 -4 -4 -4 -4 -4 -3 -3 -3 -2 -2 -2 --------- Run | Yrd Mat Mat Mat Fac Sto Rec Scr Fac Upp Upp War Pro Fac Upp Upp Zhi Pro Res Qua Res Tes Sec Total 18338 | . 673 1630 426 1127 197 624 1151 1101 388 554 750 507 412 386 630 183 549 1239 1113 759 1274 2665 Wait 1186 | . 52 84 32 27 47 86 26 123 20 12 23 104 14 . 12 3 18 99 48 13 104 239 Move 14604 | . 521 1273 287 979 132 526 1101 897 330 528 643 358 360 385 599 156 457 864 883 550 935 1840 Hop . | . . . . . . . . . . . . . . . . . . . . . . . Pick Up 301 | . 8 42 8 16 3 1 9 16 . 2 12 2 6 . . 6 6 26 25 21 31 61 Fast Attach 200 | . 6 16 6 7 2 . 2 6 1 2 9 3 2 . . 6 . 12 21 23 20 56 Attach 132 | . . 4 5 5 . . 1 4 1 . 3 2 2 . . . 3 15 18 12 5 52 Detach 35 | . 2 2 1 1 . . . 1 . . 1 1 . . . . . 1 4 2 3 16 Swap 421 | . 14 31 19 35 1 . 1 16 5 4 6 9 9 1 2 1 10 57 24 28 44 104 Drop 400 | . 19 61 13 20 5 2 10 16 . 3 14 4 6 . . 11 7 24 38 45 45 57 Fire 980 | . 49 110 53 33 7 4 1 20 8 3 31 24 13 . 10 . 37 138 51 63 87 238 Melee 1 | . . . 1 . . . . . . . . . . . . . . . . . . . Ram 1 | . . 1 . . . . . . . . . . . . . . . . . . . . Kick 21 | . 2 2 . 4 . 5 . 2 . . . . . . . . . 3 . 2 . 1 Crush 5 | . . 4 1 . . . . . . . . . . . . . . . . . . . Escape Stasis 2 | . . . . . . . . . . . . . . . . . . . 1 . . 1 Rewire 41 | . . . . . . . . . 23 . . . . . 7 . 11 . . . . . Trap . | . . . . . . . . . . . . . . . . . . . . . . . Miscellaneous 8 | . . . . . . . . . . . 8 . . . . . . . . . . . Route ------- -11/Scrapyard -10/Materials (discovered 4 exits: *Mat x3 / [*Min]) -9/Materials (discovered 3 exits: *Mat x2 / *Min) -8/Materials (discovered 3 exits: *Fac x3) -7/Factory (discovered 5 exits: *Fac x2 / *Sto / Low x2) -7/Storage -7/Recycling (discovered 2 exits: *Fac / *Scr) -7/Scraptown (discovered 2 exits: *Fac x2) -5/Factory (discovered 7 exits: *Fac x3 / *Upp x2 / Ext x2) -5/Upper Caves -5/Upper Caves -5/Warlord -4/Proximity Caves -4/Factory (discovered 2 exits: *Upp x2) -4/Upper Caves -4/Upper Caves (discovered 2 exits: *Res / *Zhi) -4/Zhirov -3/Proximity Caves -3/Research (discovered 4 exits: *Res x2 / Arm / *Qua) -3/Quarantine -2/Research (discovered 4 exits: *Acc x3 / *Tes) -2/Testing (discovered 3 exits: *Acc / *Sec / [*Frg]) -2/Section 7 History --------- Turn | Location | Event 1 | -11/Scrapyard | Discovered new exit (range 0) 1 | -11/Scrapyard | Entered Materials 75 | -10/Materials | Discovered new exit (range 13) 247 | -10/Materials | Discovered new exit (range 16) 301 | -10/Materials | Build established: Mutant 418 | -10/Materials | Discovered new exit (range 12) 568 | -10/Materials | Core integrity fell below 50% 831 | -10/Materials | Discovered new exit (range 15) 874 | -10/Materials | Entered another Materials area 874 | -9/Materials | Evolved 2 slots: Utility x1, Weapon x1 1178 | -9/Materials | Build established: Tank 1600 | -9/Materials | Discovered new exit (range 7) 1786 | -9/Materials | Build established: Scavenger-Gunner 1937 | -9/Materials | Discovered new exit (range 13) 2317 | -9/Materials | Build established: Scavenger-Tank 2330 | -9/Materials | Identified exit to Mines 3247 | -9/Materials | Discovered new exit (range 11) 3489 | -9/Materials | Build established: Tank 3910 | -9/Materials | Central database locked down 3932 | -9/Materials | Entered another Materials area 3932 | -8/Materials | Evolved 2 slots: Power x1, Utility x1 3963 | -8/Materials | Identified exit to Factory 4079 | -8/Materials | Met 7R-MNS 4130 | -8/Materials | Attacked by 7R-MNS 4192 | -8/Materials | 7R-MNS lamented failing the tripod run 4192 | -8/Materials | Destroyed 7R-MNS 4205 | -8/Materials | Found Corrupted Multitargeting Array 4210 | -8/Materials | Found Corrupted Tripod Weapons Platform 4216 | -8/Materials | Found Corrupted Thermal Barrier 4225 | -8/Materials | System corruption reached 10% 4246 | -8/Materials | System corruption reached 30% 4472 | -8/Materials | Build established: Scavenger-Tank 4736 | -8/Materials | Entered Factory 4736 | -7/Factory | Evolved 2 slots: Propulsion x1, Utility x1 4739 | -7/Factory | Attached Tripod Weapons Platform, gained temporary slots: Weapon x2 5062 | -7/Factory | Build established: Scavenger-Gunner 5090 | -7/Factory | Discovered new exit (range 16) 5109 | -7/Factory | Identified exit to Factory 5183 | -7/Factory | Identified exit to Storage 5183 | -7/Factory | Identified exit to Lower Caves 5246 | -7/Factory | Destroyed 7 combat bots 5716 | -7/Factory | Fabricated Chainsword? 5740 | -7/Factory | Discovered exit to Factory (range 6) 5853 | -7/Factory | Entered Storage 5862 | -7/Storage | Identified exit to Recycling 5984 | -7/Storage | Assisted by bots powering up and referring to "LRC-V3" 6002 | -7/Storage | Used back door to open Recycling access 6043 | -7/Storage | Entered Recycling 6043 | -7/Recycling | Accompanied by 10 allies 6099 | -7/Recycling | Scanned before Scraplab entrance 6220 | -7/Recycling | Build established: Commander-Gunner 6235 | -7/Recycling | Discovered new exit (range 16) 6597 | -7/Recycling | Entered Scraplab 6604 | -7/Recycling | Discovered new exit (range 2) 6625 | -7/Recycling | Entered Scraptown 6625 | -7/Scraptown | Accompanied by 10 allies 6625 | -7/Scraptown | System corruption cleaned by C-Scrubber 6832 | -7/Scraptown | Discovered new exit (range 13) 6893 | -7/Scraptown | Visited SPCMW 6901 | -7/Scraptown | Visited Red Mages 7088 | -7/Scraptown | Visited Cyclists 7099 | -7/Scraptown | Visited Cave Peace 7114 | -7/Scraptown | Visited UFD Registry 7114 | -7/Scraptown | Registered with UFD as "Gausstalker" 7140 | -7/Scraptown | Visited Infowarlord's Domain 7167 | -7/Scraptown | Visited Curators Association 7184 | -7/Scraptown | Visited Abandonware Association 7190 | -7/Scraptown | Learned abandonware demo "OVRCLOCK.EXE" 7197 | -7/Scraptown | Learned abandonware demo "SHUTEYE.EXE" 7197 | -7/Scraptown | Learned abandonware demo "POISON.EXE" 7219 | -7/Scraptown | Visited DA-N13 Charitable Foundation 7229 | -7/Scraptown | Found DCF Scrap (27 items) 7246 | -7/Scraptown | Visited Scrapoid Research Area 7264 | -7/Scraptown | Visited Chapter 10 7285 | -7/Scraptown | Visited Junk Repository 7328 | -7/Scraptown | Visited LU-1G1's Boring Crew 7344 | -7/Scraptown | Visited Junk Repository 7398 | -7/Scraptown | Found Exp. Terrain Scanner 7519 | -7/Scraptown | Met Optimus 7519 | -7/Scraptown | Accepted into 0bPrime 7589 | -7/Scraptown | Discovered new exit (range 3) 7662 | -7/Scraptown | Entered Factory 7662 | -5/Factory | Evolved 4 slots: Utility x4 7952 | -5/Factory | Build established: Scavenger-Tank 8248 | -5/Factory | Fabricated Adv. Force Field? 8290 | -5/Factory | Discovered new exit (range 4) 8344 | -5/Factory | Loaded intel: 8 recycling unit locations 8614 | -5/Factory | Discovered new exit (range 12) 8625 | -5/Factory | Identified exit to Factory 8639 | -5/Factory | Discovered exit to Factory (range 8) 8766 | -5/Factory | Identified exit to Upper Caves 8766 | -5/Factory | Identified exit to Extension 8915 | -5/Factory | Entered Upper Caves 8917 | -5/Upper Caves | Attracted the attention of an 0b10 outpost 8956 | -5/Upper Caves | Destroyed 7 combat bots 9289 | -5/Upper Caves | Discovered new exit (range 11) 9299 | -5/Upper Caves | Entered another Upper Caves area 9299 | -5/Upper Caves | Accompanied by 2 allies 9309 | -5/Upper Caves | Build established: Scavenger-Gunner 9310 | -5/Upper Caves | Found DCF Scrap (13 items) 9674 | -5/Upper Caves | Spotted B-75 Beast 9688 | -5/Upper Caves | Destroyed B-75 Beast 9794 | -5/Upper Caves | Discovered new exit (range 15) 9819 | -5/Upper Caves | Entered Warlord 9819 | -5/Warlord | Accompanied by 2 allies 9850 | -5/Warlord | System corruption cleaned by Quarantine Array 10013 | -5/Warlord | Learned Research stockpile data 10014 | -5/Warlord | Learned 4 Research zone layouts 10014 | -5/Warlord | Learned 4 Testing zone layouts 10014 | -5/Warlord | Learned 4 Command zone layouts 10015 | -5/Warlord | Learned Factory fabricator intel 10015 | -5/Warlord | Learned Research fabricator intel 10048 | -5/Warlord | Build established: Scavenger-Tank 10080 | -5/Warlord | Found Prototype Device 10080 | -5/Warlord | Identified Exp. Phase Shifter 10100 | -5/Warlord | Found Prototype Reactor 10100 | -5/Warlord | Identified Vortex Chain Reactor 10114 | -5/Warlord | Found Exp. Focal Shield 10121 | -5/Warlord | Found Prototype Hackware 10193 | -5/Warlord | Rebuked by Warlord 10201 | -5/Warlord | Warlord's base attacked by MAIN.C 10298 | -5/Warlord | Found Prototype Energy Gun 10298 | -5/Warlord | Identified Vortex Shotgun 10311 | -5/Warlord | Found Vortex Shotgun 10551 | -5/Warlord | Warlord forces counterattacked 10590 | -5/Warlord | Spotted Executioner 10593 | -5/Warlord | Destroyed Executioner 10596 | -5/Warlord | Spotted Executioner 10626 | -5/Warlord | Lost 7 allies 10638 | -5/Warlord | Spotted Executioner 10639 | -5/Warlord | Spotted Executioner 10641 | -5/Warlord | P-80 Master assimilated allied G4-CF4(M) 10642 | -5/Warlord | Spotted Striker 10648 | -5/Warlord | Destroyed Striker 10650 | -5/Warlord | Spotted Executioner 10652 | -5/Warlord | P-70 Sage assimilated allied YO-VEB(g) 10667 | -5/Warlord | Destroyed Executioner 10677 | -5/Warlord | Destroyed Executioner 10698 | -5/Warlord | Destroyed 9 combat bots 10701 | -5/Warlord | Spotted Striker 10701 | -5/Warlord | Spotted Striker 10721 | -5/Warlord | Destroyed Striker 10737 | -5/Warlord | Destroyed Striker 10739 | -5/Warlord | P-70 Sage assimilated allied ON-R8V(M) 10756 | -5/Warlord | Found Prototype Processor 10768 | -5/Warlord | Lost 16 allies 10773 | -5/Warlord | Destroyed 12 combat bots 10777 | -5/Warlord | Lost 4 parts (2u2w) 10782 | -5/Warlord | Discovered new exit (range 12) 10797 | -5/Warlord | Entered Proximity Caves 10799 | -4/Proximity Caves | Spotter reported a threat 10800 | -4/Proximity Caves | Spotter reported a threat 10838 | -4/Proximity Caves | Identified Exp. Core Analyzer 11507 | -4/Proximity Caves | Discovered exit to Factory (range 15) 11528 | -4/Proximity Caves | Entered Factory 11528 | -4/Factory | Evolved 2 slots: Utility x1, Weapon x1 11529 | -4/Factory | Identified exit to Upper Caves 11530 | -4/Factory | Loaded intel: 6 fabricator locations 11721 | -4/Factory | Identified Ghost Barrier 11825 | -4/Factory | Build established: Scavenger-Gunner 12126 | -4/Factory | Build established: Scavenger-Tank 12143 | -4/Factory | Entered Upper Caves 12716 | -4/Upper Caves | Discovered new exit (range 5) 12722 | -4/Upper Caves | Entered another Upper Caves area 12722 | -4/Upper Caves | Discovered new exit (range 9) 13199 | -4/Upper Caves | Entered an active Warlord outpost 13223 | -4/Upper Caves | Learned Extension emergency access door positions 13223 | -4/Upper Caves | Learned Armory stockpile data 13223 | -4/Upper Caves | Learned Factory garrison access intel 13500 | -4/Upper Caves | Attracted the attention of an 0b10 outpost 13556 | -4/Upper Caves | Destroyed 7 combat bots 13659 | -4/Upper Caves | Discovered new exit (range 7) 13672 | -4/Upper Caves | Entered Zhirov 13672 | -4/Zhirov | Accompanied by 2 allies 13675 | -4/Zhirov | Discovered new exit (range 3) 13702 | -4/Zhirov | Met Zhirov 13729 | -4/Zhirov | Learned location of Quarantine (-3) 13729 | -4/Zhirov | Learned location of Testing (-2) 13743 | -4/Zhirov | Zhirov requested help retrieving the SGEMP Prototype 13771 | -4/Zhirov | Found Alien Artifact 13771 | -4/Zhirov | Identified Integrated Reactor 13771 | -4/Zhirov | Installed Integrated Reactor, increased core energy generation (+10) 13792 | -4/Zhirov | Found Alien Artifact 13929 | -4/Zhirov | Entered Proximity Caves 13929 | -3/Proximity Caves | Accompanied by 2 allies 14011 | -3/Proximity Caves | Attracted the attention of an 0b10 outpost 14018 | -3/Proximity Caves | Spotter reported a threat 14339 | -3/Proximity Caves | Attracted the attention of an 0b10 checkpoint 14366 | -3/Proximity Caves | Destroyed 8 combat bots 14376 | -3/Proximity Caves | Found Imp. Powered Armor 14623 | -3/Proximity Caves | Spotted B-86 Titan 14745 | -3/Proximity Caves | Discovered new exit (range 9) 14778 | -3/Proximity Caves | Entered Research 14778 | -3/Research | Evolved 2 slots: Utility x1, Weapon x1 14779 | -3/Research | Identified exit to Armory 14781 | -3/Research | Loaded intel: 4 fabricator locations 14852 | -3/Research | Loaded intel: 5 recycling unit locations 14852 | -3/Research | Learned location of Protoforge (-2) 15050 | -3/Research | Build established: Scavenger-Executioner 15156 | -3/Research | Discovered new exit (range 27) 15169 | -3/Research | Spotted B-86 Titan 15256 | -3/Research | Destroyed B-86 Titan 15364 | -3/Research | Spotted B-86 Titan 15529 | -3/Research | Build established: Scavenger-Gunner 15951 | -3/Research | Garrison activated, responded to threat 16278 | -3/Research | First assault squad dispatched 16335 | -3/Research | Discovered new exit (range 8) 16477 | -3/Research | Discovered new exit (range 30) 16557 | -3/Research | Identified Transdimensional Reconstructor 16557 | -3/Research | Warped through subspace 16601 | -3/Research | Found Fusion Bomb Launcher 16677 | -3/Research | System corruption reached 10% 16705 | -3/Research | Lost 3 parts (1n1u1w) 16837 | -3/Research | Entered Quarantine 16981 | -3/Quarantine | Central database locked down 17015 | -3/Quarantine | Found Alien Artifact 17015 | -3/Quarantine | Identified Phase Armor 17088 | -3/Quarantine | Crushed by falling debris 17162 | -3/Quarantine | Lost 5 parts (1p3u1w) 17198 | -3/Quarantine | Found Alien Artifact 17496 | -3/Quarantine | Cryocooling Duct disabled 17511 | -3/Quarantine | Ambient heat levels rising (+20) 17511 | -3/Quarantine | Non-combat units ordered to evacuate 17668 | -3/Quarantine | Found Alien Artifact 17725 | -3/Quarantine | Repaired Imp. Powered Armor 17808 | -3/Quarantine | Discovered new exit (range 8) 18052 | -3/Quarantine | Found Alien Energy Cannon 18159 | -3/Quarantine | Core integrity fell below 50% 18832 | -3/Quarantine | Entered Research 18832 | -2/Research | Evolved 2 slots: Power x1, Propulsion x1 18833 | -2/Research | Identified exit to Access 19010 | -2/Research | Garrison activated, responded to threat 19172 | -2/Research | Scrapoid reinforcements arrived 19293 | -2/Research | Discovered exit to Access (range 7) 19889 | -2/Research | Found Gamma Bomb Array 19914 | -2/Research | Discovered new exit (range 10) 20051 | -2/Research | Spotted B-90 Cyclops 20085 | -2/Research | Destroyed B-90 Cyclops 20116 | -2/Research | Lost 3 parts (1u2w) 20191 | -2/Research | Entered Testing 20237 | -2/Testing | Found Prototype Energy Cannon 20237 | -2/Testing | Identified Null Cannon 20523 | -2/Testing | Found Exp. Signal Interpreter 20759 | -2/Testing | Discovered exit to Access (range 9) 20801 | -2/Testing | Found Prototype Protection 20810 | -2/Testing | Identified SHELL Armor 21063 | -2/Testing | Found Prototype Leg 21063 | -2/Testing | Identified Myomer Exoskeleton 21166 | -2/Testing | System corruption reached 10% 21246 | -2/Testing | Build established: Scientist-Skirmisher 21389 | -2/Testing | Central database locked down 21507 | -2/Testing | Spotted Striker 21509 | -2/Testing | Destroyed Striker 21590 | -2/Testing | Destroyed 8 combat bots 22161 | -2/Testing | Spotted Fortress 22171 | -2/Testing | Destroyed Fortress 22191 | -2/Testing | First assault squad dispatched 22302 | -2/Testing | Discovered new exit (range 5) 22302 | -2/Testing | Discovered new exit (range 6) 22308 | -2/Testing | Identified exit to Section 7 22309 | -2/Testing | Entered Section 7 22680 | -2/Section 7 | Build established: Scavenger-Skirmisher 22887 | -2/Section 7 | Repaired Exp. Terrain Scanner 23054 | -2/Section 7 | Spotted S7 Guard 23073 | -2/Section 7 | Destroyed S7 Guard 23089 | -2/Section 7 | Found Alien Artifact 23331 | -2/Section 7 | Identified Core Membrane 23331 | -2/Section 7 | Identified Subatomic Replicator 23333 | -2/Section 7 | Installed Core Membrane, gained immunity to corruption 23484 | -2/Section 7 | Found Alien Artifact 23559 | -2/Section 7 | First assault squad dispatched 23770 | -2/Section 7 | Spotted S7 Guard 23812 | -2/Section 7 | Core integrity fell below 50% 23911 | -2/Section 7 | Destroyed S7 Guard 23921 | -2/Section 7 | Scanned by Researcher 23922 | -2/Section 7 | Intercept squad dispatched 23928 | -2/Section 7 | Spotted Tracker 23929 | -2/Section 7 | Spotted Tracker 23942 | -2/Section 7 | Spotted Combat Programmer 23942 | -2/Section 7 | Spotted Combat Programmer 23946 | -2/Section 7 | Destroyed Tracker 23978 | -2/Section 7 | Destroyed Combat Programmer 23989 | -2/Section 7 | Destroyed Combat Programmer 24020 | -2/Section 7 | Lost 5 parts (2p1u2w) 24021 | -2/Section 7 | Found Alien Artifact 24021 | -2/Section 7 | Identified Navigation Efficiency Matrix 24021 | -2/Section 7 | Installed Navigation Efficiency Matrix, process failed with unexpected side effects 24059 | -2/Section 7 | Found Alien Artifact 24090 | -2/Section 7 | Spotted Alpha 7 24090 | -2/Section 7 | Spotted Alpha 7 24137 | -2/Section 7 | Identified Core Cannon 24170 | -2/Section 7 | Spotted Executioner 24172 | -2/Section 7 | Spotted Executioner 24182 | -2/Section 7 | Destroyed Executioner 24185 | -2/Section 7 | Destroyed Executioner 24231 | -2/Section 7 | Found Exp. Core Analyzer 24315 | -2/Section 7 | Found Alien Artifact 24357 | -2/Section 7 | Found Transdimensional Reconstructor 24576 | -2/Section 7 | Spotted B-99 Colossus 24632 | -2/Section 7 | Found Integrated Reactor 24632 | -2/Section 7 | Installed Integrated Reactor, increased core energy generation (+10) 24635 | -2/Section 7 | Found Integrated Reactor 24635 | -2/Section 7 | Installed Integrated Reactor, increased core energy generation (+10) 24638 | -2/Section 7 | Found Integrated Reactor 24638 | -2/Section 7 | Installed Integrated Reactor, increased core energy generation (+10) 24675 | -2/Section 7 | Lost 3 parts (1p2u) 24682 | -2/Section 7 | Found Corrupted Prototype Device 24682 | -2/Section 7 | Identified Exp. Shock Absorption System 24685 | -2/Section 7 | Found Corrupted Prototype Device 24685 | -2/Section 7 | Identified Exp. Thermal Shield 24696 | -2/Section 7 | Found Corrupted Prototype Launcher 24697 | -2/Section 7 | Identified Enh. Gamma Bomb Array 24760 | -2/Section 7 | Found Alien Artifact 24760 | -2/Section 7 | Identified LRC Inertial Stabilizer 24760 | -2/Section 7 | Installed LRC Inertial Stabilizer, increased mass support (+10) 24764 | -2/Section 7 | Found LRC Inertial Stabilizer 24764 | -2/Section 7 | Installed LRC Inertial Stabilizer, increased mass support (+10) 24839 | -2/Section 7 | Found Alien Artifact 24992 | -2/Section 7 | Spotted Executioner 25014 | -2/Section 7 | Spotted Executioner 25051 | -2/Section 7 | Destroyed Executioner 25055 | -2/Section 7 | Destroyed Executioner 25078 | -2/Section 7 | Found Corrupted Prototype Processor 25078 | -2/Section 7 | Identified Exp. Targeting Computer 25182 | -2/Section 7 | Destroyed 7 combat bots 25273 | -2/Section 7 | Intercept squad dispatched 25282 | -2/Section 7 | Spotted Tracker 25283 | -2/Section 7 | Spotted Tracker 25286 | -2/Section 7 | Destroyed Tracker 25293 | -2/Section 7 | Destroyed Tracker 25301 | -2/Section 7 | Spotted Combat Programmer 25302 | -2/Section 7 | Spotted Combat Programmer 25314 | -2/Section 7 | Destroyed Combat Programmer 25318 | -2/Section 7 | Destroyed Combat Programmer 25348 | -2/Section 7 | Lost 3 parts (2p1w) 25349 | -2/Section 7 | Build established: Scavenger-Gunner 25431 | -2/Section 7 | Spotted S7 Guard 25442 | -2/Section 7 | Destroyed S7 Guard 25464 | -2/Section 7 | Found Alien Artifact 25503 | -2/Section 7 | Spotted B-90 Cyclops 25556 | -2/Section 7 | Warped through subspace 25557 | -2/Section 7 | Core integrity fell below 20% 25559 | -2/Section 7 | Identified Integrity Redistributor (x2) 25559 | -2/Section 7 | Used Integrity Redistributor, redistributed integrity to core (+287) 25560 | -2/Section 7 | Identified Core Regenerator 25560 | -2/Section 7 | Used Core Regenerator, restored core integrity (+362) 25561 | -2/Section 7 | Identified Integrated Mediator 25561 | -2/Section 7 | Installed Integrated Mediator, increased core attachment efficiency 25562 | -2/Section 7 | Identified Terrabomb 25562 | -2/Section 7 | Used Terrabomb 25566 | -2/Section 7 | Used Subatomic Replicator to replicate Integrity Redistributor 25572 | -2/Section 7 | Used Integrity Redistributor, redistributed integrity from core (-351) 25581 | -2/Section 7 | Found Adv. Kinecellerator 25728 | -2/Section 7 | Build established: Scavenger-Skirmisher 25898 | -2/Section 7 | Destroyed 15 combat bots 25986 | -2/Section 7 | Destroyed Tracker 26089 | -2/Section 7 | High security lockdown imminent 26125 | -2/Section 7 | Intercept squad dispatched 26127 | -2/Section 7 | Spotted Tracker 26127 | -2/Section 7 | Spotted Tracker 26135 | -2/Section 7 | Spotted Combat Programmer 26136 | -2/Section 7 | Spotted Combat Programmer 26137 | -2/Section 7 | Destroyed Tracker 26137 | -2/Section 7 | Destroyed Tracker 26169 | -2/Section 7 | High security lockdown engaged 26175 | -2/Section 7 | Found Prototype Protection 26175 | -2/Section 7 | Identified Centrium Heavy Armor Plating 26178 | -2/Section 7 | Found Centrium Heavy Armor Plating 26184 | -2/Section 7 | Found Centrium Heavy Armor Plating 26190 | -2/Section 7 | Discovered exit to Access (range 12) 26195 | -2/Section 7 | Used Integrity Redistributor, redistributed integrity to core (+239) 26239 | -2/Section 7 | Lost 25 parts (5p8n6u6w) 26357 | -2/Section 7 | Found Fusion Bomb Launcher+ 26373 | -2/Section 7 | Found Alien Artifact 26373 | -2/Section 7 | Identified Core Reset Matrix 26373 | -2/Section 7 | Used Core Reset Matrix 26377 | -2/Section 7 | Detected hypermatrix surge 26377 | -2/Section 7 | Sensed 8 artifacts in vicinity 26413 | -2/Section 7 | Destroyed by Y-72 Warden with Railgun Last Messages --------------- 26403_ Penetrated by EMDS Slug. 26403_ Hvy. Armor Plating destroyed. 26403_ Core Membrane filtered system corruption (1). 26404_ ALERT: Suspicious intruders detected, dispatching Cutter reinforcements to area. 26408_ Navigation matrix triggers involuntary quantum shift. 26409_ Critical hit (Burn: +37). 26409_ Slug penetrates Wall. 26410_ Terminal disabled. 26410_ Slug penetrates Terminal. 26410_ Slug penetrates Door. 26411_ Terminal disabled. 26411_ Knocked back. 26411_ G-73 Enforcer knocked back. 26411_ C-57 Dissector knocked back. 26411_ G-73 Enforcer knocked back. 26412_ Knocked back. 26412_ C-57 Dissector knocked back. Map ----- +----------------------------------------------------+ | ???##############??????????????!?????????????????? | | ???# #?????????????????????? #????????? | | ???# #????????###??????????? #????????? | | ???# ##########"#########??" #????????? | | ???# ## " #?" #????????? | | ???# ## """ ""# " """ # #????????? | | ???# "" """ "" "" """ ""# " "! # #????????? | | ???# "" " " "" ## """ ""# " "" " #????##??? | | ???# """ ## """ S# "" # #### ""??? | | ???# """ """ ## """ ""# " """ #? %!!"%"??? | | ???# " " " " ## """ ""# " " " #?? ! " ??? | | ???+ "" """ ## """ " # " """ #? !! ?? | | ???# ## # # " ?? | | ???#######+##############g### ### ## "??? | | ???????# Yg g ??? | | ???????# Y g ??? | | ???????# g "" b ???? | | ?? b """ b ???? | | ?##########+########### T ###+########???? | | ??????????????????????# """ #???? | | ??????????????######### ""c """""???????? | | ??????????????# o"""""???????? | | ??????????????# """"""" #???? | | ??????????????# #???? | | ??????????????# """"""" #???? | | ??????????????##+########@"" " ## """""???????? | | ????????????????????????##"" "" #????"""""???????? | | ?????????????????????????# # ##????? ???????? | | ???????????????????????????###?????????? ! ??????? | | ?????????????????????????????????????????? ?????? | | ??????????????????????????????????????????? ????? | | ?????????????????????????????????????????????#???? | | ?????????????????????????????????????????????????? | | ?????????????????????????????????????????????????? | | ?????????????????????????????????????????????????? | | ?????????????????????????????????????????????????? | | ?????????????????????????????????????????????????? | | ?????????????????????????????????????????????????? | | ?????????????????????????????????????????????????? | | ?????????????????????????????????????????????????? | | ?????????????????????????????????????????????????? | | ?????????????????????????????????????????????????? | | ?????????????????????????????????????????????????? | | ?????????????????????????????????????????????????? | | ?????????????????????????????????????????????????? | | ?????????????????????????????????????????????????? | | ?????????????????????????????????????????????????? | | ?????????????????????????????????????????????????? | | ?????????????????????????????????????????????????? | | ?????????????????????????????????????????????????? | +----------------------------------------------------+ Best States ------------- Heat Dissipation 177 Coolant Potential 120 Energy Generation 103 Energy Capacity 1090 Matter Stores 300 Matter Capacity 300 Sight Range 23 Robot Scan Range 16 Terrain Scan Range 30 Terrain Scan Density 210 Jamming Range 16 Base Temperature (-) 200 Armor Coverage 1200 Resistance: KI 30 Resistance: TH 50 Propulsion Shielding 90 Weapon Cycling 20 Phase Shifting 20 Evasion (%) 60 Targeting Accuracy 40 Core Analysis 11 Recoil Reduction 4 Particle Charging 30 Offensive Hacking 38 Defensive Hacking 20 Item Schematics ----------------- None Robot Schematics ------------------ None Fabricated ------------ Chainsword | x2 | -7/Factory | Preloaded Adv. Force Field | x2 | -5/Factory | Preloaded Repaired ---------- Imp. Powered Armor | 3% | -3/Quarantine Exp. Terrain Scanner | 3% | -2/Section 7 Studied --------- None Alien Tech Used ----------------- Integrated Reactor Transdimensional Reconstructor Phase Armor Subatomic Replicator Core Membrane Navigation Efficiency Matrix Core Cannon LRC Inertial Stabilizer Integrity Redistributor Core Regenerator Integrated Mediator Terrabomb Core Reset Matrix Achievements -------------- None Challenges ------------ None Game ------ Seed ExplosiveHelicalDrivehammer Manual? 0 Play Time 04:41:00 Cumulative 332.3 hours Start 2025.10.25 @ 09:40:40 End 2025.10.26 @ 19:51:09 Sessions 3 Manual Loads 0 Difficulty Rogue Special Mode None Game No. 105 Rogue 105 Adventurer 0 Explorer 0 Win Type - Total 7 Types 3/0/3/0/0/0/0/0/0/1 Lore% 76 Gallery% 83 Achievement% 64 Wizard Run 0 Options --------- Layout 1 ASCII 0 Keyboard 1 Movement Arrows Keybinds 0 Fullscreen 1 Font 24/Smallcaps Map View 50x35 Zoom Use 0% Tactical HUD 1 Map Filters NONE Filters NONE Steam 1 RUN: 40798060-c587-4c57-9be7-6d3c5cbd77bc